Workbook

Sheet <МЕНЮ>
D2: АУДИТ СИСТЕМЫ МАРКЕТИНГА И ПРОДАЖ
D3: «Аудит системы маркетинга и продаж» © ООО «БМР» (ИНН 7723866732 КПП 772201001 ОГРН 1137746246395) 2014 год
D4: ИНФОРМАЦИЯ О ЗАЩИТЕ АВТОРСКИХ ПРАВ
B5: СПРАВОЧНАЯ ИНФОРМАЦИЯ | D5: 1. ПЕРВОЕ ВПЕЧАТЛЕНИЕ
D7: 2. БЛИЦ
B9: 3. МАРКЕТИНГ | D9: 4. АЛГОРИТМ ПРОДАЖ | F9: 5. ИНФРАСТРУКТУРА
B10: САЙТ | D10: РАБОТА С КЛИЕНТОМ | F10: ОФИС
D11: ЛИЧНЫЙ ВИЗИТ | F11: ТЕЛЕФОНИЯ
B12: КАНАЛЫ ПРИВЛЕЧЕНИЯ | D12: ТОРГОВОЕ ПОМЕЩЕНИЕ | F12: E-MAIL, SMS
D13: ЗАКАЗ И ОПЛАТА | F13: CRM
B14: МАРКЕТИНГОВЫЕ МАТЕРИАЛЫ | D14: ПОВТОРНЫЕ ПРОДАЖИ
B16: 6. ПЕРСОНАЛ | D16: 7. ПОКАЗАТЕЛИ | F16: 8. РЕЖИМ HARD
B17: РЕКРУТИНГ | D17: ОСНОВНЫЕ ПОКАЗАТЕЛИ | F17: 2 ДНЯ МЕНЕДЖЕРОМ
B18: МОТИВАЦИЯ | D18: ВОРОНКА ПРОДАЖ
D19: АНАЛИЗ ПРОДУКТОВ И КЛИЕНТОВ
B20: ОБУЧЕНИЕ
B22: РЕЗУЛЬТАТЫ И ИТОГОВЫЕ БАЛЛЫ

Sheet 1-е ВПЕЧАТЛЕНИЕ
B2: ГЛАВНОЕ МЕНЮ | D2: ПЕРВОЕ ВПЕЧАТЛЕНИЕ О КОМПАНИИ И ВВОДНАЯ ИНФОРМАЦИЯ
B3: СЛЕДУЮЩИЙ БЛОК | D3: ВОПРОС | E3: ОТВЕТ
D4: ВАЖНО! Этот этап необходимо заполнять ДО беседы с владельцем бизнеса. Вы должны оценить компанию как случайный клиент.
D6: Сформулируйте, чем, на Ваш взгляд, занимается компания?
D8: В каком регионе работает компания?
D10: Сколько лет компания существует на рынке?
D12: Почему стоит купить именно в этой компании и этот товар?
D14: Что можете сказать по поводу сайта? Ваше общее первое впечатление.
D16: Что можете сказать по поводу маркетинговых материалов?
D18: Какие замечания и рекомендации можете дать до детального знакомства с компанией? Что бросается в глаза?
D20: Дополнительные комментарии:

Sheet БЛИЦ
B2: ГЛАВНОЕ МЕНЮ | D2: БЛИЦ-ВОПРОСЫ ПЕРВОМУ ЛИЦУ КОМПАНИИ
B3: СЛЕДУЮЩИЙ БЛОК | D3: Вопросы задаются первому лицу компании в быстром темпе, без возможности использовать дополнительные источники информации и советоваться с коллегами и подчиненными
D4: ОБЩИЕ ДАННЫЕ О ВЛАДЕЛЬЦЕ КОМПАНИИ
D5: ФИО
D6: Город
D7: Единственный бизнес или нет?
D8: Сколько лет в бизнесе? | H8: 3 | I8: 4 | J8: 5 | K8: 6 | L8: 7 | M8: 8 | N8: 9 | O8: 10 | P8: 11 | Q8: 12 | R8: 13 | S8: 14 | T8: 15 | U8: 16 | V8: 17 | W8: 18 | X8: 19 | Y8: 20 | Z8: 21 | AA8: 22 | AB8: 23 | AC8: 24 | AD8: 25 | AE8: 26 | AF8: 27 | AG8: 28 | AH8: 29 | AI8: 30 | AJ8: 31
D9: ОБЩИЕ ДАННЫЕ О КОМПАНИИ | H9: да | I9: менее 1 года | J9: менее 1 года | K9: менее года | L9: Финансы (банки, инвестиции, лизинг) | M9: менее года | N9: 1-5 чел | O9: 1-5 чел | P9: до 100 т.р. | Q9: до 100 т.р. | R9: до 100 т.р. | S9: до 100 т.р. | T9: 1 дней | U9: до 300 | V9: менее 10 | W9: менее 0.5 | X9: менее 50 т.р. | Y9: менее 50 т.р. | Z9: 1-5 шт | AA9: менее 0,5 | AB9: менее 0,5 | AC9: до 300 руб | AD9: до 300 руб | AE9: до 300 руб | AF9: до 300 руб
D10: Название компании | H10: нет | I10: 1-3 года | J10: 1-3 года | K10: 1-3 года | L10: Безопасность | M10: 1-3 года | N10: 5-15 чел. | O10: 5-15 чел. | P10: 100 - 500 т.р. | Q10: 100 - 500 т.р. | R10: 100 - 500 т.р. | S10: 100 - 500 т.р. | T10: 1 - 5 дней | U10: 300 — 1000 | V10: 10 — 30 | W10: 0.5 — 1 | X10: 50 — 150 т.р. | Y10: 50 — 150 т.р. | Z10: 5-15 шт | AA10: 0,5-1 | AB10: 0,5-1 | AC10: 300-500 руб | AD10: 300-500 руб | AE10: 300-500 руб | AF10: 300-500 руб
D11: Сфера деятельности | I11: 3-5 лет | J11: 3-5 лет | K11: 3-5 лет | L11: Государственная служба | M11: 3-5 лет | N11: 15 — 30 чел. | O11: 15 — 30 чел. | P11: 500 т.р.— 1 500 т.р. | Q11: 500 т.р.— 1 500 т.р. | R11: 500 т.р.— 1 500 т.р. | S11: 500 т.р.— 1 500 т.р. | T11: 5 - 20 дней | U11: 1000 — 5 000 | V11: 30 — 100 | W11: 1 — 3 | X11: 150 — 300 т.р. | Y11: 150 — 300 т.р. | Z11: 15-40 шт | AA11: 1-3 | AB11: 1-3 | AC11: 500-1000 руб | AD11: 500-1000 руб | AE11: 500-1000 руб | AF11: 500-1000 руб
D12: Сколько лет существует компания | I12: 5-7 лет | J12: 5-7 лет | K12: 5-7 лет | L12: Добыча сырья | M12: 5-7 лет | N12: более 30 чел. | O12: более 30 чел. | P12: 1,5 — 5 млн.р. | Q12: 1,5 — 5 млн.р. | R12: 1,5 — 5 млн.р. | S12: 1,5 — 5 млн.р. | T12: 20 дней — 2 месяца | U12: 5 000 — 15 000 | V12: 100 — 300 | W12: 3 — 5 | X12: 300 — 1 млн. р. | Y12: 300 — 1 млн. р. | Z12: 40-100 шт | AA12: 3-5 | AB12: 3-5 | AC12: 1000-3000 руб | AD12: 1000-3000 руб | AE12: 1000-3000 руб | AF12: 1000-3000 руб
D13: Количество сотрудников в компании | I13: более 7 лет | J13: более 7 лет | K13: более 7 лет | L13: Закупки | M13: более 7 лет | P13: 5 — 20 млн.р. | Q13: 5 — 20 млн.р. | R13: 5 — 20 млн.р. | S13: 5 — 20 млн.р. | T13: 2 — 5 месяцев | U13: 15 000 — 40 000 | V13: более 300 | W13: 5 — 10 | X13: 1 - 5 млн.р. | Y13: 1 - 5 млн.р. | Z13: 100-300 шт | AA13: 5-10 | AB13: 5-10 | AC13: 3000-10000 руб | AD13: 3000-10000 руб | AE13: 3000-10000 руб | AF13: 3000-10000 руб
D14: Количество менеджеров в отделе продаж | L14: Инсталяция и сервис | P14: 20 — 50 млн.р. | Q14: 20 — 50 млн.р. | R14: 20 — 50 млн.р. | S14: 20 — 50 млн.р. | T14: более 5 месяцев | U14: более 40 000 | V14: нет данных | W14: 10 — 20 | X14: 5 — 15 млн.р. | Y14: 5 — 15 млн.р. | Z14: 300-1000шт | AA14: 10-20 | AB14: 10-20 | AC14: 10000-30000 руб | AD14: 10000-30000 руб | AE14: 10000-30000 руб | AF14: 10000-30000 руб
D15: БЛИЦ-ВОПРОСЫ | L15: Искусство и развлечения | P15: 50 — 200 млн.р. | Q15: 50 — 200 млн.р. | R15: 50 — 200 млн.р. | S15: 50 — 200 млн.р. | T15: нет данных | U15: нет данных | W15: 20 — 40 | X15: более 15 млн.р. | Y15: более 15 млн.р. | Z15: более 1000 шт | AA15: 20-40 | AB15: 20-40 | AC15: 30000-100000 руб | AD15: 30000-100000 руб | AE15: 30000-100000 руб | AF15: 30000-100000 руб
D16: ВОПРОС | E16: ОТВЕТ | L16: Консультирование | P16: 200 — 500 млн.р. | Q16: 200 — 500 млн.р. | R16: 200 — 500 млн.р. | S16: 200 — 500 млн.р. | W16: более 40 | X16: нет данных | Y16: нет данных | Z16: нет данных | AA16: более 40 | AB16: более 40 | AC16: более 100000 руб | AD16: более 100000 руб | AE16: более 100000 руб | AF16: более 100000 руб
D17: Средняя выручка в месяц (руб.) | L17: Маркетинг, реклама, PR | P17: более 500 млн.р. | Q17: более 500 млн.р. | R17: более 500 млн.р. | S17: более 500 млн.р. | W17: нет данных | AA17: нет данных | AB17: нет данных | AC17: нет данных | AD17: нет данных | AE17: нет данных | AF17: нет данных
D18: Планируемая выручка через 2 месяца (руб.) | L18: Медицина, фармацевтика | P18: нет данных | Q18: нет данных | R18: нет данных | S18: нет данных
D19: Прибыль на одного сотрудника (руб.) | L19: Некоммерческие организации
D20: Прибыль на одного менеджера отдела продаж (руб.) | L20: Образование, наука
D21: Цикл сделки (дней) | L21: Продажи
D22: Среднее количество посетителей Вашего сайта в сутки (уникальных посетителей) | L22: Производство
D23: Среднее количество входящих звонков и заявок в сутки (шт.) | L23: Страхование
D24: Конверсия из лидов в сделки (%) | L24: Строительство, недвижимости
D25: Средняя выручка за день (руб.) | L25: Транспорт, логистика
D26: Выручка за вчерашний день (руб.) | L26: Туризм, ресторанный бизнес
D27: Количество сделок за прошедший месяц (шт.) | L27: Управление персоналом
D28: Оцените конверсию лендингов (посетители -> заявки, в %)
D29: Оцените конверсию сайта (посетители -> лиды, в %)
D30: Средняя стоимость лида (руб.)
D31: Средняя стоимость клиента (руб.)
D32: Средний чек (руб.)
D33: Доход за весь жизненный цикл клиента - LTV (руб.)
D35: Итоги блиц проверки:

Sheet САЙТ
B2: ГЛАВНОЕ МЕНЮ | D2: САЙТ КОМПАНИИ
B3: СЛЕДУЮЩИЙ БЛОК
D4: ОТКРЫТЫЕ ВОПРОСЫ С ОЦЕНКОЙ
D5: ВОПРОС | E5: ОТВЕТ | F5: ОЦЕНКА
A6: Р - | B6: отвечает руководитель | C6: Р | D6: Покажите Ваш сайт и расскажите о том, как он создавался? | H6: плохо (в этом вопросе явный провал) | J6: 1
A7: А - | B7: отвечает аудитор | C7: Р | D7: Какой эффект от сайта Вы видите для своего бизнеса? | H7: нейтрально (нельзя особо выделить) | J7: 1
C8: Р | D8: Как организован траффик на сайте? | H8: хорошо (этот вопрос проработан на высоком уровне) | J8: 1
C9: А | D9: Оцените визуальное восприятие сайта и качество дизайна. Приятен ли сайт? | J9: 1
C10: А | D10: Оцените копирайтинг сайта: смысл и суть доносимой информации. Понятна ли основная мысль за 1 скролл? | J10: 1
C11: А | D11: Ваше первое впечатление при попытке купить либо заказать услугу через сайт | J11: 1
C12: Р | D12: Какие сильные стороны сайта Вы видите? | J12: 1
C13: Р | D13: Какие слабые стороны сайта Вы видите? | J13: 1
D14: ЧЕК-ЛИСТ
D15: Что есть в данной компании? Отметьте компоненты и системы, которые присутствуют в данном бизнесе
D16: РАЗРАБОТКА САЙТА | E16: КОМПОНЕНТЫ САЙТА | F16: Описание продуктов / услуг | L16: FALSE | M16: FALSE | N16: TRUE
D17: Нет явных ошибок на сайте (вёрстка, копирайтинг, функционал) | E17: Используются лендинги по основным продуктам / услугам | F17: Примеры выполненных проектов (кейсы) | L17: FALSE | M17: FALSE | N17: TRUE
D18: Скорость загрузки сайта менее 3 секунд | E18: Телефон компании на главной странице | F18: Форма захвата на главной странице | L18: FALSE | M18: FALSE | N18: TRUE
D19: Проводятся A/B тесты | E19: Онлайн-консультант на главной странице | F19: Заказ обратного звонка | M19: FALSE | N19: FALSE
D20: Мобильная версия сайта | E20: Адрес компании на главной странице | F20: Описание направлений деятельности компании | M20: FALSE | N20: FALSE
D21: Адаптивный контент | E21: Схема проезда на сайте | F21: Ссылки на страницы в соцсетях ("социальные кнопки") | M21: FALSE | N21: FALSE
F22: Поиск по сайту | N22: FALSE
I23: ХОР | J23: =COUNTIF(J5:J20, "4")+O24 -> 0
I24: плох | J24: =COUNTIF(J6:J21, "2") -> 0 | L24: =COUNTIF(L16:L21, "ИСТИНА") -> 0 | M24: =COUNTIF(M16:M21, "ИСТИНА") -> 0 | N24: =COUNTIF(N16:N21, "ИСТИНА") -> 3 | O24: =ROUNDDOWN(SUM(L24:N24)/5,0) -> 0 | Q24: =SUM(L24:N24)+J23 -> 3
D25: Общее впечатление о блоке:

Sheet КАНАЛЫ ПРИВЛЕЧЕНИЯ
B2: ГЛАВНОЕ МЕНЮ | D2: КАНАЛЫ ПРИВЛЕЧЕНИЯ КЛИЕНТОВ
B3: СЛЕДУЮЩИЙ БЛОК
D4: ОТКРЫТЫЕ ВОПРОСЫ С ОЦЕНКОЙ
D5: ВОПРОС | E5: ОТВЕТ | F5: ОЦЕНКА
A6: Р - | B6: отвечает руководитель | C6: Р | D6: Каким образом рекламируетесь, и какие каналы привлечения используются? | H6: плохо (в этом вопросе явный провал) | J6: 1
A7: А - | B7: отвечает аудитор | C7: Р | D7: Есть ли понимание рекламного бюджета? Как он определяется и из чего состоит? | H7: нейтрально (нельзя особо выделить) | J7: 1
C8: Р | D8: Как устроена оценка эффективности рекламных кампаний? Как Вы определяете источники клиентов? | H8: хорошо (этот вопрос проработан на высоком уровне) | J8: 1
C9: Р | D9: Как и кто занимается маркетингом? | J9: 1
C10: Р | D10: Как Вы проводите маркетинговые акции? | J10: 1
C11: Р | D11: Есть ли в технологиях и методах привлечения то, чем Вы можете гордиться? | J11: 1
C12: Р | D12: В чём Вы видите болевые точки и проблемные зоны в привлечении клиентов?
D13: ЧЕК-ЛИСТ
D14: Что есть в данной компании? Отметьте компоненты и системы, которые присутствуют в данном бизнесе
D15: ИНТЕРНЕТ-РЕКЛАМА | E15: МОБИЛЬНАЯ РЕКЛАМА | F15: Вывеска на фасаде здания | L15: FALSE | M15: FALSE | N15: FALSE
D16: Баннеры на тематических сайтах | E16: Мобильное приложение | F16: Вывеска перед входом в офис | L16: FALSE | M16: FALSE | N16: FALSE
D17: Контекстная реклама | E17: SMS/MMS рассылки | F17: РЕКЛАМА В МЕДИА | L17: FALSE | M17: FALSE | N17: FALSE
D18: Таргетированная реклама в соцсетях | E18: QR-коды | F18: Статьи в отраслевой прессе | L18: FALSE | M18: FALSE | N18: FALSE
D19: Группы в соцсетях | E19: Сервисы геолокации | F19: Авторские колонки в прессе | L19: FALSE | M19: FALSE | N19: FALSE
D20: Реклама в Youtube | E20: НАРУЖНАЯ РЕКЛАМА | F20: Реклама в отраслевой прессе | L20: FALSE | M20: FALSE | N20: FALSE
D21: Статьи в интернете | E21: Рекламные щиты | F21: Реклама на радио | L21: FALSE | M21: FALSE | N21: FALSE
D22: Блог компании в интернете | E22: Перетяжки | F22: Реклама на телевидении | L22: FALSE | M22: FALSE | N22: FALSE
D23: Отзывы в интернете | E23: Световые короба (лайтбоксы) | F23: Доски объявлений | L23: FALSE | M23: FALSE | N23: FALSE
D24: CPA сети | E24: Рекламные щиты (билборды) | F24: МЕРОПРИЯТИЯ | L24: FALSE | M24: FALSE | N24: FALSE
D25: Партнерские программы | E25: Видеоэкраны | F25: Посещение выставок/конференций, участие в выставках | L25: FALSE | M25: FALSE | N25: FALSE
D26: Тизерные сети | E26: Оформление витрин | F26: Выступления на выставках/конференциях | L26: FALSE | M26: FALSE | N26: FALSE
D27: Ретаргетинг | E27: Реклама в метро | F27: ПОДХОД К ПРИВЛЕЧЕНИЮ
D28: E-mail рассылки | E28: Реклама в маршрутках | F28: Сегментация целевой аудитории | N28: FALSE
D29: Купонные сервисы | E29: Промоутеры | F29: Проведение маркетинговых исследований и экспериментов | L29: FALSE | N29: FALSE
I30: ХОР | J30: =COUNTIF(J1:J26, "4")+O31 -> 0
I31: плох | J31: =COUNTIF(J1:J26, "2") -> 0 | L31: =COUNTIF(L1:L26, "ИСТИНА") -> 0 | M31: =COUNTIF(M1:M26, "ИСТИНА") -> 0 | N31: =COUNTIF(N1:N26, "ИСТИНА") -> 0 | O31: =ROUNDDOWN(SUM(L31:N31)/5,0) -> 0 | Q31: =SUM(L31:N31)+J30 -> 0
D32: Общее впечатление о блоке:

Sheet МАРКЕТИНГОВЫЕ МАТЕРИАЛЫ
B2: ГЛАВНОЕ МЕНЮ | D2: МАРКЕТИНГОВЫЕ МАТЕРИАЛЫ
B3: СЛЕДУЮЩИЙ БЛОК
D4: ОТКРЫТЫЕ ВОПРОСЫ С ОЦЕНКОЙ
D5: ВОПРОС | E5: ОТВЕТ | F5: ОЦЕНКА
A6: Р - | B6: отвечает руководитель | C6: Р | D6: Какие виды маркетинговых материалов Вы используете? | H6: хорошо (этот вопрос проработан на высоком уровне) | J6: 1
A7: А - | B7: отвечает аудитор | C7: Р | D7: Как Вы оцениваете эффективность использования материалов? (QR-коды, ссылки, уникальные телефонные номера, др.) | H7: нейтрально (нельзя особо выделить)
C8: Р | D8: Как Вы используете маркетинговые материалы в повседневной работе с клиентами? | H8: плохо (в этом вопросе явный провал)
C9: Р | D9: Чем Вы можете гордиться в Ваших маркетинговых материалах?
C10: Р | D10: Какие Вы видите явные проблемы и болевые точки?
C11: А | D11: Ваше впечатление о качестве печати маркетинговых материалов
C12: А | D12: Какое визуальное впечатление от верстки и дизайна материалов?
C13: А | D13: Какие основные смыслы Вы увидели в сухом остатке после просмотра материалов?
C14: А | D14: Какой предусмотрен в материалах следующий шаг? (call-to-action) Есть ли он вообще?
D15: ЧЕК-ЛИСТ
D16: Что есть в данной компании? Отметьте компоненты и системы, которые присутствуют в данном бизнесе
D17: Видеосюжеты (о выполненных проектах, видеоотзывы клиентов) | E17: Содержат отзывы клиентов | F17: Фирменная брошюра | L17: FALSE | M17: FALSE | N17: FALSE
D18: Описание маркетинговых акций на сайте | E18: Дают понимание следующего шага | F18: Визитка компании | L18: FALSE | M18: FALSE | N18: FALSE
D19: УРОВЕНЬ МАРКЕТИНГОВЫХ МАТЕРИАЛОВ | E19: Содержат информацию о первом лице компании | F19: Календарь в фирменном стиле компании | L19: FALSE | M19: FALSE | N19: FALSE
D20: Фирменный стиль оформления | E20: Содержат контактную информация (адрес, телефон, e-mail) | F20: Поздравительная открытка в фирменном стиле | L20: FALSE | M20: FALSE | N20: FALSE
D21: Красивые и хорошо читаемые шрифты | E21: ВИДЫ МАРКЕТИНГОВЫХ МАТЕРИАЛОВ | F21: Сувениры в фирменном стиле | L21: FALSE | M21: FALSE | N21: FALSE
D22: Содержат описание сферы деятельности компании | E22: Маркетинг-кит | F22: Ценники | L22: FALSE | M22: FALSE | N22: FALSE
D23: Грамотный копирайтинг | E23: Напечатанный каталог продукции / услуг | F23: Плакаты | L23: FALSE | M23: FALSE | N23: FALSE
D24: Содержат каталог продукции/услуг | E24: Прайс лист | F24: Демонстрационная продукция | L24: FALSE | M24: FALSE | N24: FALSE
D25: Являются инструментом кросс-продаж | E25: Шаблоны коммерческих предложений | L25: FALSE | M25: FALSE | N25: FALSE
D26: Содержат кейсы | E26: Фирменная листовка | L26: FALSE | M26: FALSE | N26: FALSE
I27: ХОР | J27: =COUNTIF(J1:J26, "4")+O28 -> 0
I28: плох | J28: =COUNTIF(J1:J26, "2") -> 0 | L28: =COUNTIF(L3:L26, "ИСТИНА") -> 0 | M28: =COUNTIF(M3:M26, "ИСТИНА") -> 0 | N28: =COUNTIF(N3:N26, "ИСТИНА") -> 0 | O28: =ROUNDDOWN(SUM(L28:N28)/5,0) -> 0 | Q28: =SUM(L28:N28)+J27 -> 0
D29: Общее впечатление о блоке:

Sheet РАБОТА С КЛИЕНТОМ
B2: ГЛАВНОЕ МЕНЮ | D2: РАБОТА С КЛИЕНТОМ
B3: СЛЕДУЮЩИЙ БЛОК
D4: ОТКРЫТЫЕ ВОПРОСЫ С ОЦЕНКОЙ
D5: ВОПРОС | E5: ОТВЕТ | F5: ОЦЕНКА
A6: Р - | B6: отвечает руководитель | C6: Р | D6: Расскажите поэтапно цепочку работы с клиентом | H6: плохо (в этом вопросе явный провал) | J6: 1
A7: А - | B7: отвечает аудитор | C7: Р | D7: Как соблюдаются регламенты и скрипты? | H7: нейтрально (нельзя особо выделить) | J7: 1
C8: Р | D8: Как выстоена система контроля использования скриптов? | H8: хорошо (этот вопрос проработан на высоком уровне) | J8: 1
C9: Р | D9: Как построен процессс анализа скриптов, выявления лучшей практики и разработки скриптов? | J9: 1
C10: Р | D10: Лучшая практика на этом участке работы. Есть ли у Вас то, чем Вы гордитесь? | J10: 1
C11: Р | D11: Какие очевидные проблемы Вы видите в алгоритмах работы с клиентами? | J11: 1
C12: А | D12: Как проявляется экспертность менеджеров при обсуждении продукта? | J12: 1
D13: ЧЕК-ЛИСТ
D14: Что есть в данной компании? Отметьте компоненты и системы, которые присутствуют в данном бизнесе
D15: ТЕЛЕФОННЫЙ ЗВОНОК | E15: Бесплатный первый шаг | F15: ОНЛАЙН-КОНСУЛЬТАНТ | L15: FALSE | M15: FALSE | N15: FALSE
D16: Можно заказать продукт/услугу по телефону | E16: Была попытка продажи | F16: Есть онлайн-консультант
D17: Городской номер телефона (+7 495 …) | E17: Была отработка возражений | F17: Скорость ответа менее 1 минуты
D18: Федеральный номер телефона (8 800 ….) | E18: Назначен следующий шаг | F18: Уточнили мои контактные данные
D19: Бесплатная линия консультации | E19: Была попытка допродажи (upsale) | F19: Был ли дан ответ на заданный вопрос?
D20: Мелодия/приветствие в режиме ожидания | E20: Сказали об акциях и спецпредложениях | F20: Менеджер был вежлив?
D21: Тоновое меню | E21: Попытка получения оплаты | F21: СОЦСЕТИ
D22: Автоматическое голосовое меню | E22: Сотрудник уточнил, есть ли у меня нерешенные вопросы | F22: Есть страница либо аккаунт в соцсетях
D23: Время ожидания до взятия трубки менее 10 секунд | E23: Сотрудник поблагодарил меня за обращение/звонок/интерес | F23: Ответ дан менее чем через 1 час
D24: Корпоративное приветствие | E24: ОБРАЩЕНИЕ НА E-MAIL | F24: Уточнилили мои контактные данные?
D25: Приветливый тон | E25: Есть электронный адрес для обращений клиентов | F25: Был ли дан ответ на заданный вопрос? | L25: FALSE | M25: FALSE | N25: FALSE
D26: Уточнили цель звонка | E26: Скорость ответа менее 2-х часов | F26: Грамотность речи: были ли в речи менеджера грамматические ошибки? | L26: FALSE | M26: FALSE | N26: FALSE
D27: Быстро и верно переключили на нужного менеджера | E27: Фирменный бланк письма | F27: Менеджер был вежлив? | L27: FALSE | M27: FALSE | N27: FALSE
D28: Уточнили источник информации о компании | E28: Уточнили мои контактные данные | F28: ОТРИЦАТЕЛЬНЫЕ ФАКТОРЫ | L28: FALSE | M28: FALSE | N28: FALSE
D29: Уточнили моё имя | E29: Был дан ответ на заданный вопрос | F29: Слова-паразиты | N29: FALSE
D30: Уточнили контактные данные | E30: Менеджер был вежлив | F30: Жаргонизмы | L30: FALSE | M30: FALSE | N30: FALSE
D31: Были заданы классифицирующие вопросы | E31: В ответном пиьсме присутствовали должность и контактные данные менеджера | F31: Уменьшительно-ласкательные суффиксы | L31: FALSE | M31: FALSE | N31: FALSE
F32: Переход на "ты" без разрешения | L32: FALSE | M32: FALSE | N32: FALSE
F33: Грамотность речи: в письме менеджера были грамматические ошибки | L33: FALSE | M33: FALSE | N33: FALSE
F34: Грамотность речи: в речи менеджера были ошибки | L34: FALSE | M34: FALSE | N34: FALSE
I35: ХОР | J35: =COUNTIF(J4:J34, "4")+O36 -> 0
I36: плох | J36: =COUNTIF(J3:J34, "2")+Q36 -> 0 | L36: =COUNTIF(L1:L34, "ИСТИНА") -> 0 | M36: =COUNTIF(M1:M34, "ИСТИНА") -> 0 | N36: =COUNTIF(N1:N28, "ИСТИНА") -> 0 | O36: =ROUNDDOWN(SUM(L36:N36)/5,0) -> 0 | Q36: =ROUNDDOWN(COUNTIF(N29:N34, "ИСТИНА")/5,0) -> 0 | S36: =SUM(L36:N36)+J35 -> 0
D37: Общее впечатление о блоке:

Sheet ВИЗИТ В ОФИС
B2: ГЛАВНОЕ МЕНЮ | D2: ВИЗИТ В ОФИС
B3: СЛЕДУЮЩИЙ БЛОК
D4: ОТКРЫТЫЕ ВОПРОСЫ С ОЦЕНКОЙ
D5: ВОПРОС | E5: ОТВЕТ | F5: ОЦЕНКА
A6: Р - | B6: отвечает руководитель | C6: Р | D6: Какие существуют алгоритмы и регламенты приёма и общения с посетителями офиса компании? | H6: плохо (в этом вопросе явный провал) | J6: 1
A7: А - | B7: отвечает аудитор | C7: Р | D7: Кто из сотрудников отвечает за приём посетителей? | H7: нейтрально (нельзя особо выделить) | J7: 1
C8: А | D8: Как офис влияет на статус компании в целом? | H8: хорошо (этот вопрос проработан на высоком уровне) | J8: 1
C9: Р | D9: Какие плюсы и минусы при приеме гостей в офисе у Вас существуют? | J9: 1
C10: Р | D10: Чем Вы можете гордиться в организации приема визитеров? | J10: 1
D11: ЧЕК-ЛИСТ
D12: Что есть в данной компании? Отметьте компоненты и системы, которые присутствуют в данном бизнесе
D13: ЗДАНИЕ, ОФИС и ПЕРСОНАЛ | E13: ОБЩЕНИЕ С МЕНЕДЖЕРОМ | F13: Были заданы классифицирующие вопросы | L13: FALSE | M13: FALSE | N13: FALSE
D14: Есть ли дорожные указатели? | E14: Менеджер назвал своё имя и должность | F14: Попытка продажи
D15: Есть ли парковка? | E15: Приятен в общении | F15: Отработка возражений | N15: FALSE
D16: Офис класса B и выше | E16: Менеджер пунктуален | F16: Назначен следующий шаг | N16: FALSE
D17: Вывеска с названием компании | E17: Менеджер является экспертом в своей области | F17: Попытка допродажи | M17: FALSE | N17: FALSE
D18: 3D-логотипы над ресепшн | E18: Использовал доп. материалы | F18: Сказал об акциях/спецпредложениях | N18: FALSE
D19: Ресепшн компании | E19: Ответил на все имеющиеся вопросы | F19: Попытка получения оплаты/предоплаты | M19: FALSE | N19: FALSE
D20: Вежливость персонала | E20: Менеджер дал свою визитку | F20: Менеджер уточнил, есть ли у клиента нерешенные вопросы | N20: FALSE
D21: Уточнили цель приезда | E21: Уточнил контактные данные клиента | F21: Менеджер поблагодарил клиента за обращение | L21: FALSE | N21: FALSE
D22: Сориентировались и отвели к нужному сотруднику | E22: Показал кейсы компании | F22: Корпоративный стиль
D23: Опрятный внешний вид персонала | E23: Использовал демонстрационное оборудование
D24: Предложили кофе/чай | L24: FALSE | M24: FALSE | N24: FALSE
I25: ХОР | J25: =COUNTIF(J2:J24, "4")+O26 -> 0
I26: плох | J26: =COUNTIF(J1:J24, "2")+Q26 -> 0 | L26: =COUNTIF(L12:L25, "ИСТИНА") -> 0 | M26: =COUNTIF(M12:M25, "ИСТИНА") -> 0 | N26: =COUNTIF(N12:N25, "ИСТИНА") -> 0 | O26: =ROUNDDOWN(SUM(L26:N26)/5,0) -> 0 | Q26: =ROUNDDOWN(COUNTIF(N25, "ИСТИНА")/5,0) -> 0 | S26: =SUM(L26:N26)+J25 -> 0
D27: Общее впечатление о блоке:

Sheet ПОСЕЩЕНИЕ ТОРГОВОГО ЗАЛА
B2: ГЛАВНОЕ МЕНЮ | D2: ПОСЕЩЕНИЕ ТОРГОВОГО ЗАЛА
B3: СЛЕДУЮЩИЙ БЛОК
D4: ОТКРЫТЫЕ ВОПРОСЫ С ОЦЕНКОЙ
D5: ВОПРОС | E5: ОТВЕТ | F5: ОЦЕНКА
A6: Р - | B6: отвечает руководитель | C6: Р | D6: Какие преимущества расположения торговой точки: удаленность от метро, интенсивность трафика, престижность района, и т.д. | H6: плохо (в этом вопросе явный провал) | J6: 1
A7: А - | B7: отвечает аудитор | C7: Р | D7: Какие стандарты выкладки Вы используете? Есть ли стимуляторы? | H7: нейтрально (нельзя особо выделить) | J7: 1
C8: Р | D8: От каких факторов зависит выручка вашей торговой точки? | H8: хорошо (этот вопрос проработан на высоком уровне) | J8: 1
C9: Р | D9: Какими решениями в вашей торговой зоне Вы можете гордиться? | J9: 1
C10: Р | D10: Какие проблемы Вы видите в вашей торговой зоне?
C11: А | D11: Продает ли пространство? Обоснуйте ответ.
D12: ЧЕК-ЛИСТ
D13: Что есть в данной компании? Отметьте компоненты и системы, которые присутствуют в данном бизнесе
D14: ВХОД В ТОРГОВУЮ ЗОНУ | E14: Хит продаж | F14: СОТРУДНИКИ И ОБЩЕНИЕ С КЛИЕНТАМИ | L14: FALSE | M14: FALSE | N14: FALSE
D15: Указатели-подсказки | E15: Товары дня | F15: Опрятный внешний вид сотрудников
D16: Входная группа | E16: Продающие ценники | F16: Корпоративный стиль сотрудников | N16: FALSE
D17: Вывеска | E17: Наклейки по акциям | F17: Наличие скриптов и алгоритмов работы с клиентами | N17: FALSE
D18: Счетчик посетителей | E18: Воблеры | F18: АТМОСФЕРА | M18: FALSE | N18: FALSE
D19: ОФОРМЛЕНИЕ ТОРГОВОЙ ЗОНЫ | E19: Плазма с видеопотоком | F19: Аромамаркетинг (запах в помещении) | N19: FALSE
D20: Товары-киллеры | E20: Инфостенды | F20: Музыка | M20: FALSE | N20: FALSE
D21: Спеццена | E21: Демонстрационные стенды | F21: Бесплатные сладости/сувениры посетителям | N21: FALSE
E22: Маркетинговые стимуляторы | F22: Дизайн помещения | L22: FALSE | N22: FALSE
D25: Общее впечатление о блоке: | L25: FALSE | M25: FALSE | N25: FALSE
I26: ХОР | J26: =COUNTIF(J3:J25, "4")+O27 -> 0
I27: плох | J27: =COUNTIF(J2:J25, "2")+Q27 -> 0 | L27: =COUNTIF(L13:L26, "ИСТИНА") -> 0 | M27: =COUNTIF(M13:M26, "ИСТИНА") -> 0 | N27: =COUNTIF(N13:N26, "ИСТИНА") -> 0 | O27: =ROUNDDOWN(SUM(L27:N27)/5,0) -> 0 | Q27: =ROUNDDOWN(COUNTIF(N26, "ИСТИНА")/5,0) -> 0 | S27: =SUM(L27:N27)+J26 -> 0

Sheet ЗАКАЗ И ОПЛАТА
B2: ГЛАВНОЕ МЕНЮ | D2: ЗАКАЗ И ОПЛАТА
B3: СЛЕДУЮЩИЙ БЛОК
D4: ОТКРЫТЫЕ ВОПРОСЫ С ОЦЕНКОЙ
D5: ВОПРОС | E5: ОТВЕТ | F5: ОЦЕНКА
A6: Р - | B6: отвечает руководитель | C6: А | D6: Как организована возможность покупки без менеджера? | H6: плохо (в этом вопросе явный провал) | J6: 1
A7: А - | B7: отвечает аудитор | C7: А | D7: Понятно ли, как купить? Как строится поддержка в процессе оформления заказа? | H7: нейтрально (нельзя особо выделить) | J7: 1
C8: А | D8: Какие существуют способы купить и оплатить заказ? | H8: хорошо (этот вопрос проработан на высоком уровне) | J8: 1
C9: А | D9: Упражнение: доберитесь до последнего шага (без менеджера, без оплаты) | J9: 1
C10: Р | D10: Есть ли в процессе заказа и оплаты то, чем вы можете гордиться? | J10: 1
C11: Р | D11: В чём вы видите болевые точки и проблемные зоны этого участка? | J11: 1
D12: ЧЕК-ЛИСТ
D13: Что есть в данной компании? Отметьте компоненты и системы, которые присутствуют в данном бизнесе
D14: ЗАКАЗ НА САЙТЕ | E14: ОПЛАТА ЗАКАЗА | F14: ДЕЙСТВИЯ ПОСЛЕ ЗАКАЗА | L14: FALSE | M14: FALSE | N14: FALSE
D15: Есть раздел "корзина" | E15: Возможность оплаты картой | F15: Менеджер позвонил и подтвердил заказ | N15: FALSE
D16: Можно отложить товар | E16: Возможность оплаты интернет-деньгами (Яндекс Деньги, Paypall, Webmoney) | F16: Менеджер поблагодарил за заказ | N16: FALSE
D17: Сравнение схожих товаров | E17: Возможность оплаты через SMS | F17: Email-уведомление о заказе | N17: FALSE
D18: Система предложит дополняющие товары | E18: Возможность оплаты через рассчетный счет | F18: В почтовом уведомлении есть № заказа и телефон | M18: FALSE | N18: FALSE
D19: Видеоинструкции по заказу и оплате | E19: Возможность оплаты через кассу | F19: SMS-уведомление о заказе | N19: FALSE
D20: Заказ без регистрации | E20: Возможность оплаты наличными курьеру | F20: Возможность треккинга заказа | M20: FALSE | N20: FALSE
D21: Возможность быстрого заказа | E21: Возможность оплаты наложенным платежом | F21: Возможность назначить точное время доставки | N21: FALSE
I22: ХОР | J22: =COUNTIF(J3:J21, "4")+O23 -> 0
I23: плох | J23: =COUNTIF(J2:J21, "2")+Q23 -> 0 | L23: =COUNTIF(L13:L22, "ИСТИНА") -> 0 | M23: =COUNTIF(M13:M22, "ИСТИНА") -> 0 | N23: =COUNTIF(N13:N22, "ИСТИНА") -> 0 | O23: =ROUNDDOWN(SUM(L23:N23)/5,0) -> 0 | Q23: =ROUNDDOWN(COUNTIF(N22, "ИСТИНА")/5,0) -> 0 | S23: =SUM(L23:N23)+J22 -> 0
D24: Общее впечатление о блоке:
D38: Заказ без регистрации
D39: Возможность быстрого заказа
D40: Возможность оплаты по кредитной карте
D41: Возможность оплаты интернет-деньгами (Яндекс Деньги, Paypall, др.)
D42: Менеджер позвонил и подтвердил заказ
D43: Менеджер поблагодарил за заказ
D44: Уведомление на почту
D45: В почтовом уведомлении есть № заказа и телефон
D46: Уведомление по SMS
D47: В SMS-уведомлении есть № заказа и телефон

Sheet ПОСТПРОДАЖИ
B2: ГЛАВНОЕ МЕНЮ | D2: ПОСТПРОДАЖИ
B3: СЛЕДУЮЩИЙ БЛОК
D4: ОТКРЫТЫЕ ВОПРОСЫ С ОЦЕНКОЙ
D5: ВОПРОС | E5: ОТВЕТ | F5: ОЦЕНКА
A6: Р - | B6: отвечает руководитель | C6: Р | D6: Что происходит после покупки? | H6: плохо (в этом вопросе явный провал)
A7: А - | B7: отвечает аудитор | C7: Р | D7: Считается ли LTV (стоимость клиента за жизненный цикл)? Какие параметры влияют на этот показатель? | H7: нейтрально (нельзя особо выделить)
C8: Р | D8: Назовите причины купить второй раз. | H8: хорошо (этот вопрос проработан на высоком уровне)
C9: Р | D9: Назовите причины вас рекомендовать.
C10: Р | D10: Есть ли на данном участке то, чем Вы можете гордиться? | J10: 1
C11: Р | D11: В чём Вы видите болевые точки и проблемные зоны? Что можно и нужно улучшить?
D12: ЧЕК-ЛИСТ
D13: Что есть в данной компании? Отметьте компоненты и системы, которые присутствуют в данном бизнесе
D14: МЕТОДЫ ПОВТОРНОГО ПРИВЛЕЧЕНИЯ | E14: купоны на повторную покупку | F14: ПОСТОЯННЫЕ ПОКУПАТЕЛИ | L14: FALSE | M14: FALSE | N14: FALSE
D15: дисконтные системы | E15: прогрессирующие скидки | F15: карты для постоянных покупателей | M15: FALSE | N15: FALSE
D16: бонусные системы | E16: программа лояльности | F16: мероприятия для постоянных покупателей | M16: FALSE | N16: FALSE
D17: накопительные системы | E17: СИСТЕМЫ | F17: личный менеджер для пост клиентов | N17: FALSE
D18: скрипты для повторных продаж | E18: SMS-рассылка | F18: горячая линия для постоянных клиентов | M18: FALSE | N18: FALSE
D19: сувениры и подарки при покупке | E19: система сбора обратной связи и отзывов | F19: акции для постоянных покупателей | M19: FALSE | N19: FALSE
D20: скидки на повторные покупки
I21: ХОР | J21: =COUNTIF(J3:J19, "4")+O22 -> 0
I22: плох | J22: =COUNTIF(J2:J19, "2")+Q22 -> 0 | L22: =COUNTIF(L13:L21, "ИСТИНА") -> 0 | M22: =COUNTIF(M13:M21, "ИСТИНА") -> 0 | N22: =COUNTIF(N13:N21, "ИСТИНА") -> 0 | O22: =ROUNDDOWN(SUM(L22:N22)/5,0) -> 0 | Q22: =ROUNDDOWN(COUNTIF(N21, "ИСТИНА")/5,0) -> 0 | S22: =SUM(L22:N22)+J21 -> 0
D23: Общее впечатление о блоке:

Sheet ИНФРАСТРУКТУРА ОФИСА
B2: ГЛАВНОЕ МЕНЮ | D2: ИНФРАСТРУКТУРА ОФИСА
B3: СЛЕДУЮЩИЙ БЛОК
D4: ОТКРЫТЫЕ ВОПРОСЫ С ОЦЕНКОЙ
D5: ВОПРОС | E5: ОТВЕТ | F5: ОЦЕНКА
A6: Р - | B6: отвечает руководитель | C6: Р | D6: Из каких систем состоит инфраструктура вашего офиса? Какие из систем наиболее важные? | H6: плохо (в этом вопросе явный провал) | J6: 1
A7: А - | B7: отвечает аудитор | C7: Р | D7: Какие удобства для сотрудников есть в офисе? | H7: нейтрально (нельзя особо выделить)
C8: Р | D8: Какие существуют запреты в вашем офисном пространстве? | H8: хорошо (этот вопрос проработан на высоком уровне)
C9: Р | D9: Как организована система безопасности и контроль физического доступа в офис?
C10: Р | D10: Есть ли в инфраструктуре офиса то, чем Вы можете гордиться?
C11: Р | D11: В чём Вы видите болевые точки и проблемные зоны в инфраструктуре Вашего офиса?
D12: ЧЕК-ЛИСТ
D13: Что есть в данной компании? Отметьте компоненты и системы, которые присутствуют в данном бизнесе
D14: УДОБСТВО ОФИСА | E14: ЗОНЫ ОФИСА | F14: ИНФРАСТРУКТУРА | L14: FALSE | M14: FALSE | N14: FALSE
D15: Шаговая доступность от метро | E15: Клиентская зона | F15: Телефон на каждом рабочем месте | M15: FALSE | N15: FALSE
D16: Площадь: более 4 кв. м. на одного сотрудника | E16: Переговорная комната | F16: Компьютер на каждом рабочем месте | M16: FALSE | N16: FALSE
D17: Кулер и/или кофемашина | E17: Кухня либо отдельная зона для обеда и чая/кофе | F17: Перегородки между рабочими местами | N17: FALSE
D18: Шумопоглощаюшая гарнитура (для менеджеров отдела продаж) | E18: Комната отдыха | F18: Проведен оптоволоконный интернет-кабель | M18: FALSE | N18: FALSE
D19: БЕЗОПАСНОСТЬ | E19: Пространство в корпоративном стиле | F19: Система кондиционирования | M19: FALSE | N19: FALSE
D20: Охрана здания | F20: Регулярная уборка помещения
D21: Электронные пропуска
D22: Видеонаблюдение
I23: ХОР | J23: =COUNTIF(J3:J19, "4")+O24 -> 0
I24: плох | J24: =COUNTIF(J2:J19, "2")+Q24 -> 0 | L24: =COUNTIF(L13:L23, "ИСТИНА") -> 0 | M24: =COUNTIF(M13:M23, "ИСТИНА") -> 0 | N24: =COUNTIF(N13:N23, "ИСТИНА") -> 0 | O24: =ROUNDDOWN(SUM(L24:N24)/5,0) -> 0 | Q24: =ROUNDDOWN(COUNTIF(N23, "ИСТИНА")/5,0) -> 0 | S24: =SUM(L24:N24)+J23 -> 0
D25: Общее впечатление о блоке:

Sheet ТЕЛЕФОНИЯ
B2: ГЛАВНОЕ МЕНЮ | D2: ТЕЛЕФОНИЯ
B3: СЛЕДУЮЩИЙ БЛОК
D4: ОТКРЫТЫЕ ВОПРОСЫ С ОЦЕНКОЙ
D5: ВОПРОС | E5: ОТВЕТ | F5: ОЦЕНКА
A6: Р - | B6: отвечает руководитель | C6: Р | D6: Название Вашей системы IP телефонии: | H6: плохо (в этом вопросе явный провал)
A7: А - | B7: отвечает аудитор | C7: Р | D7: Как организована связь в вашей компании? | H7: нейтрально (нельзя особо выделить)
C8: Р | D8: Централизована ли связь? Ограничено ли общение по личным телефонам? Ведется ли общение с клиентами только в рамках корп. связи? | H8: хорошо (этот вопрос проработан на высоком уровне)
C9: Р | D9: Как выглядит сбор и анализ статистики звонков?
C10: Р | D10: Как ведется запись и анализ телефонных разговоров?
C11: Р | D11: Есть ли в области телефонии в Вашей компании то, чем Вы можете гордиться?
C12: Р | D12: В чём Вы видите болевые точки и проблемные зоны в привлечении клиентов? | J12: 1
D13: ЧЕК-ЛИСТ
D14: Что есть в данной компании? Отметьте компоненты и системы, которые присутствуют в данном бизнесе
D15: Хорошее качество сигнала и слышимость | E15: Аудиоконференции | F15: Возможность сбора статистики звонков | L15: FALSE | M15: FALSE | N15: FALSE
D16: Возможность записи звонков | E16: Голосовая почта | F16: Интеграция телефонии с CRM системой | M16: FALSE | N16: FALSE
D17: Определитель номера | E17: Голосовое меню | F17: Возможность звонка с сайта | M17: FALSE | N17: FALSE
D18: Фиксация пропущенных звонков | E18: Автообзвон | F18: Автоматический набор номера (звонок одним кликом) | N18: FALSE
E19: Запись корпоративных мобильных телефонов | F19: Система колл-треккинга | M19: FALSE | N19: FALSE
I20: ХОР | J20: =COUNTIF(J4:J19, "4")+O21 -> 0
I21: плох | J21: =COUNTIF(J3:J19, "2")+Q21 -> 0 | L21: =COUNTIF(L14:L20, "ИСТИНА") -> 0 | M21: =COUNTIF(M14:M20, "ИСТИНА") -> 0 | N21: =COUNTIF(N14:N20, "ИСТИНА") -> 0 | O21: =ROUNDDOWN(SUM(L21:N21)/5,0) -> 0 | Q21: =ROUNDDOWN(COUNTIF(N20, "ИСТИНА")/5,0) -> 0 | S21: =SUM(L21:N21)+J20 -> 0
D22: Общее впечатление о блоке:

Sheet E-MAIL, SMS
B2: ГЛАВНОЕ МЕНЮ | D2: E-MAIL И SMS ПЛАТФОРМЫ
B3: СЛЕДУЮЩИЙ БЛОК
D4: ОТКРЫТЫЕ ВОПРОСЫ С ОЦЕНКОЙ
D5: ВОПРОС | E5: ОТВЕТ | F5: ОЦЕНКА
A6: Р - | B6: отвечает руководитель | C6: Р | D6: Как используется e-mail в вашей компании? | H6: плохо (в этом вопросе явный провал)
A7: А - | B7: отвечает аудитор | C7: Р | D7: Как реализуется правило использования только корпоративной почты? Интегрирована ли переписка с CRM системой? | H7: нейтрально (нельзя особо выделить)
C8: Р | D8: Ведется ли в компании e-mail маркетинг? Как реализована цепочка добивающих касаний? | H8: хорошо (этот вопрос проработан на высоком уровне) | J8: 1
C9: Р | D9: Как организована работа по сегментам в e-mail маркетинге?
C10: Р | D10: Есть ли в e-mail платформе то, чем Вы можете гордиться?
C11: Р | D11: В чём Вы видите болевые точки и проблемные зоны в e-mail и sms платформах?
D12: ЧЕК-ЛИСТ
D13: Что есть в данной компании? Отметьте компоненты и системы, которые присутствуют в данном бизнесе
D14: УРОВЕНЬ КОРПОРАТИВНОЙ ПОЧТЫ | E14: Создание списков рассылки | F14: ПЛАТФОРМА SMS РАССЫЛОК | M14: FALSE | N14: FALSE
D15: Корпоративный домен почты | E15: Интеграция e-mail рассылки с CRM | F15: Есть платформа для SMS рассылок | M15: FALSE | N15: FALSE
D16: Личный адрес почты у каждого сотрудника | E16: Интеграция e-mail рассылки с сайтом | F16: Экспорт контактов из Excel | M16: FALSE | N16: FALSE
D17: Интеграция почты с календарём | E17: Персонализация писем | F17: Создание списков рассылки | M17: FALSE | N17: FALSE
D18: ПЛАТФОРМА E-MAIL РАССЫЛОК | E18: Возможность создания своего шаблона e-mail рассылки | F18: Персонализация | M18: FALSE | N18: FALSE
D19: Есть платформа для почтовых рассылок | E19: Возможность собирать статистику | F19: Возможность создания своего шаблона рассылки | M19: FALSE | N19: FALSE
D20: Экспорт контактов для e-mail рассылки из Excel | E20: Цепочки касаний по сегментам | F20: Интеграция платформы для SMS рассылок с CRM | M20: FALSE | N20: FALSE
E21: Логические касания | F21: Интеграция платформы для SMS рассылок с сайтом | M21: FALSE | N21: FALSE
I22: ХОР | J22: =COUNTIF(J3:J21, "4")+O23 -> 0
I23: плох | J23: =COUNTIF(J2:J21, "2")+Q23 -> 0 | L23: =COUNTIF(L13:L22, "ИСТИНА") -> 0 | M23: =COUNTIF(M13:M22, "ИСТИНА") -> 0 | N23: =COUNTIF(N13:N22, "ИСТИНА") -> 0 | O23: =ROUNDDOWN(SUM(L23:N23)/5,0) -> 0 | Q23: =ROUNDDOWN(COUNTIF(N22, "ИСТИНА")/5,0) -> 0 | S23: =SUM(L23:N23)+J22 -> 0
D24: Общее впечатление о блоке:

Sheet CRM
B2: ГЛАВНОЕ МЕНЮ | D2: CRM СИСТЕМА
B3: СЛЕДУЮЩИЙ БЛОК
D4: ОТКРЫТЫЕ ВОПРОСЫ С ОЦЕНКОЙ
D5: ВОПРОС | E5: ОТВЕТ | F5: ОЦЕНКА
A6: Р - | B6: отвечает руководитель | C6: Р | D6: Название вашей CRM системы:
A7: А - | B7: отвечает аудитор | C7: Р | D7: В каком виде внедрена CRM-система в вашей компании? Насколько активно используется? | H7: плохо (в этом вопросе явный провал)
C8: Р | D8: Какими ключевыми функциями CRM вы пользуетесь? | H8: нейтрально (нельзя особо выделить)
C9: Р | D9: Какие данные фиксируются в CRM системе? | H9: хорошо (этот вопрос проработан на высоком уровне)
C10: Р | D10: Какие есть дыры и возможности обойти систему?
C11: Р | D11: Как организован сбор статистики и анализ показателей по отделу продаж?
C12: Р | D12: Где хранится клиенсткая база, и какие есть возможности её кражи?
C13: Р | D13: Есть ли возможность не вести контакты в CRM системе? | J13: 1
C14: Р | D14: Что в вашей CRM-системе Вы можете назвать лучшей практикой? | J14: 1
C15: Р | D15: Какие явные недостатки и болевые точки вашей CRM-системы Вы видите?
D16: ЧЕК-ЛИСТ
D17: Что есть в данной компании? Отметьте компоненты и системы, которые присутствуют в данном бизнесе
D18: ОБЩИЕ ПАРАМЕТРЫ | E18: АТРИБУТЫ ОБЪЕКТА "КАРТОЧКА КЛИЕНТА" | F18: АТРИБУТЫ ОБЪЕКТА "КОНТРАКТ" | M18: FALSE | N18: FALSE
D19: Возможность интеграции с IP телефонией | E19: Тип клиента | F19: Информация о клиенте | M19: FALSE | N19: FALSE
D20: Возможность интеграции с сайтом | E20: Наименование / ФИО | F20: Тип контракта | M20: FALSE | N20: FALSE
D21: Интеграция с корпоративной почтой | E21: Возраст, пол | F21: Роли контрагентов | M21: FALSE | N21: FALSE
D22: Система распознавания клиента | E22: Статус клиента | F22: Продукты | M22: FALSE | N22: FALSE
D23: Система быстрого отклика на обращение | E23: Реквизиты | F23: Ценовые условия | M23: FALSE | N23: FALSE
D24: Система фильтрации обращений | E24: Сфера деятельности | F24: Сроки | M24: FALSE | N24: FALSE
D25: Система приоритетного распределения заявок | E25: Контакты по типам | F25: АТРИБУТЫ ОБЪЕКТА "ОБРАЩЕНИЕ" | M25: FALSE | N25: FALSE
D26: Система онлайн-подсказок | E26: Источник привлечения | F26: Входящее/Исходящее | M26: FALSE | N26: FALSE
D27: История каждого клиента (лог активности) | E27: Консолидация данных | F27: Канал обращения | M27: FALSE | N27: FALSE
D28: Консолидированная панель мониторинга (Dashboard) | E28: История клиента | F28: Тип обращения | M28: FALSE | N28: FALSE
D29: Анализ по срезам | E29: Специфические атрибуты | F29: Контактные данные | M29: FALSE | N29: FALSE
D30: Поиск и фильтрация объектов | E30: VIP | F30: Есть возможность прикреплять документы | M30: FALSE | N30: FALSE
D31: Возможность добавить произвольный дополнительный атрибут | E31: АТРИБУТЫ ОБЪЕКТА "КАРТОЧКА СДЕЛКИ" | F31: Статус | M31: FALSE | N31: FALSE
D32: Статусная шкала | E32: Информация о клиенте | F32: Дедлайн | M32: FALSE | N32: FALSE
D33: Каскадные статусы | E33: Ответственное лицо | F33: История обращений | M33: FALSE | N33: FALSE
D34: Подгрузка файлов | E34: Роли | F34: Комментарии | M34: FALSE | N34: FALSE
E35: Продукты | F35: АТРИБУТЫ ОБЪЕКТА "КАРТОЧКА ЗАДАЧИ" | M35: FALSE | N35: FALSE
E36: Условия сделки | F36: Дата регистрации | M36: FALSE | N36: FALSE
E37: Статус сделки | F37: Привязка к другому объекту (клиенту, сделке, контракту, обращению) | M37: FALSE | N37: FALSE
E38: Возможность отследить историю сделки | F38: Ответственный | M38: FALSE | N38: FALSE
F39: Дедлайн | M39: FALSE | N39: FALSE
F40: Приоритет | M40: FALSE | N40: FALSE
F41: Статус | M41: FALSE | N41: FALSE
F42: Тип задачи | M42: FALSE | N42: FALSE
F43: Подзадачи | M43: FALSE | N43: FALSE
I44: ХОР | J44: =COUNTIF(J7:J43, "4")+O45 -> 0
I45: плох | J45: =COUNTIF(J6:J43, "2")+Q45 -> 0 | L45: =COUNTIF(L17:L44, "ИСТИНА") -> 0 | M45: =COUNTIF(M17:M44, "ИСТИНА") -> 0 | N45: =COUNTIF(N17:N44, "ИСТИНА") -> 0 | O45: =ROUNDDOWN(SUM(L45:N45)/5,0) -> 0 | Q45: =ROUNDDOWN(COUNTIF(N44, "ИСТИНА")/5,0) -> 0 | S45: =SUM(L45:N45)+J44 -> 0
D46: Общее впечатление о блоке:

Sheet РЕКРУТИНГ
B2: ГЛАВНОЕ МЕНЮ | D2: РЕКРУТИНГ
B3: СЛЕДУЮЩИЙ БЛОК
D4: ОТКРЫТЫЕ ВОПРОСЫ С ОЦЕНКОЙ
D5: ВОПРОС | E5: ОТВЕТ | F5: ОЦЕНКА
A6: Р - | B6: отвечает руководитель | C6: Р | D6: Как построен рекрутинг в целом? | H6: плохо (в этом вопросе явный провал)
A7: А - | B7: отвечает аудитор | C7: Р | D7: Как построен поиск кандидатов? | H7: нейтрально (нельзя особо выделить)
C8: Р | D8: Как построена оценка кандидата? | H8: хорошо (этот вопрос проработан на высоком уровне)
C9: Р | D9: Кто отвечает за вопросы человеческих ресурсов?
C10: Р | D10: Лучшая практика на этом участке работы. Есть ли у Вас то, чем Вы гордитесь?
C11: Р | D11: Какие очевидные проблемы Вы видите на этом участке? | J11: 1
D12: ЧЕК-ЛИСТ
D13: Что есть в данной компании? Отметьте компоненты и системы, которые присутствуют в данном бизнесе
D14: УНИКАЛЬНОЕ ПРЕДЛОЖЕНИЕ ДЛЯ КАНДИДАТОВ | E14: Использование закрытых баз кандидатов | F14: ПОИСК В СОЦИАЛЬНЫХ СЕТЯХ | M14: FALSE | N14: FALSE
D15: Карьерный рост | E15: Правила скрининга резюме | F15: Вконтакте | M15: FALSE | N15: FALSE
D16: Белая зарплата | E16: Телефонные интервью | F16: Facebook | M16: FALSE | N16: FALSE
D17: Прозрачная и понятная система для больших заработков | E17: Групповые интервью | F17: Linkedin | M17: FALSE | N17: FALSE
D18: Классные продукты | E18: Многоуровневый ассессмент | F18: Профессионалы.ru | M18: FALSE | N18: FALSE
D19: Хорошая репутация компании | E19: Несколько этапов отбора кандидатов | F19: ИНСТРУМЕНТЫ ПОИСКА | M19: FALSE | N19: FALSE
D20: Качественная инфраструктура | E20: Обязательное прохождение полиграфа | F20: Печатные издания | M20: FALSE | N20: FALSE
D21: Корпоративное обучение не для галочки | E21: Тестовый период | F21: Центры занятосни | M21: FALSE | N21: FALSE
D22: Сплоченная команда | E22: Отзывы от увольняющихся сотрудников | F22: Блоги | N22: FALSE
D23: ПОИСК И ОТБОР КАНДИДАТОВ | E23: РАБОТНЫЕ САЙТЫ | F23: Ярмарки вакансий
D24: Ответственный за рекрутинг сотрудник или отдел | E24: HH.RU | F24: Рекомендации | N24: FALSE
D25: Размещение объявлений более чем на 5 хантинговых площадках | E25: SUPERJOB | F25: TV и радио | M25: FALSE | N25: FALSE
D26: Автоматизация рекрутинга | E26: JOB.RU | F26: Кадровые агентства | M26: FALSE | N26: FALSE
E27: Avito.ru | M27: FALSE | N27: FALSE
I28: ХОР | J28: =COUNTIF(J6:J23, "4")+O29 -> 0
I29: плох | J29: =COUNTIF(J6:J26, "2")+Q29 -> 0 | L29: =COUNTIF(L11:L27, "ИСТИНА") -> 0 | M29: =COUNTIF(M11:M27, "ИСТИНА") -> 0 | N29: =COUNTIF(N12:N27, "ИСТИНА") -> 0 | O29: =ROUNDDOWN(SUM(L29:N29)/5,0) -> 0 | Q29: =ROUNDDOWN(COUNTIF(N28, "ИСТИНА")/5,0) -> 0 | S29: =SUM(L29:N29)+J28 -> 0
D30: Общее впечатление о блоке:

Sheet ОБУЧЕНИЕ СОТРУДНИКОВ
B2: ГЛАВНОЕ МЕНЮ | D2: ОБУЧЕНИЕ СОТРУДНИКОВ
B3: СЛЕДУЮЩИЙ БЛОК
D4: ОТКРЫТЫЕ ВОПРОСЫ С ОЦЕНКОЙ
D5: ВОПРОС | E5: ОТВЕТ | F5: ОЦЕНКА
D6: Как построено обучение сотрудников? | H6: плохо (в этом вопросе явный провал)
D7: Как Вы обучаете продажам? | H7: нейтрально (нельзя особо выделить)
D8: Как Вы обучаете продукту? | H8: хорошо (этот вопрос проработан на высоком уровне)
D9: Обучение происходит за счет сотрудников или компании?
D10: Кто отвечает за обучение?
D11: Есть ли в обучении сотрудников то, чем Вы можете гордиться? | J11: 1
D12: В чём Вы видите болевые точки и проблемные зоны в обучении сотрудников?
D13: ЧЕК-ЛИСТ
D14: Что есть в данной компании? Отметьте компоненты и системы, которые присутствуют в данном бизнесе
D15: УЧЕБНЫЕ МАТЕРИАЛЫ И МЕРОПРИЯТИЯ | E15: ТЕМЫ ОБУЧЕНИЯ | F15: Допродажи | M15: FALSE | N15: FALSE
D16: книга продаж | E16: Скрипты телефонных продаж | F16: Техники продаж | M16: FALSE | N16: FALSE
D17: технические справочные материалы | E17: Проведение встреч | F17: ФОРМЫ ОБУЧЕНИЯ. КТО ОБУЧАЕТ? | N17: FALSE
D18: видеотренинги | E18: Продажи в ретейле | F18: штатный тренер | N18: FALSE
D19: внутренние тренинги | E19: Обучение продукту | F19: поэтапная аттестация | N19: FALSE
D20: Welcome-day | E20: Пост-продажи | F20: настольное или полевое обучение | M20: FALSE | N20: FALSE
D21: выездные тренинги | E21: Связанные продажи | F21: наставничество | M21: FALSE | N21: FALSE
I22: ХОР | J22: =COUNTIF(J1:J18, "4")+O23 -> 0
I23: плох | J23: =COUNTIF(J1:J21, "2")+Q23 -> 0 | L23: =COUNTIF(L6:L21, "ИСТИНА") -> 0 | M23: =COUNTIF(M6:M21, "ИСТИНА") -> 0 | N23: =COUNTIF(N7:N21, "ИСТИНА") -> 0 | O23: =ROUNDDOWN(SUM(L23:N23)/5,0) -> 0 | Q23: =ROUNDDOWN(COUNTIF(N22, "ИСТИНА")/5,0) -> 0 | S23: =SUM(L23:N23)+J22 -> 0
D24: Общее впечатление о блоке:

Sheet МОТИВАЦИЯ
B2: ГЛАВНОЕ МЕНЮ | D2: МОТИВАЦИЯ
B3: СЛЕДУЮЩИЙ БЛОК
D4: ОТКРЫТЫЕ ВОПРОСЫ С ОЦЕНКОЙ
D5: ВОПРОС | E5: ОТВЕТ | F5: ОЦЕНКА
D6: Какая у Вас система мотивации? | H6: плохо (в этом вопросе явный провал)
D7: Какое соотношение фиксированной и постоянной части? Чем это соотношение обусловлено? | H7: нейтрально (нельзя особо выделить)
D8: Как Вы используете коллективную и индивидуальную мотивацию? | H8: хорошо (этот вопрос проработан на высоком уровне) | J8: 1
D9: Каким образом вычисляется бонус менеджера, от каких критериев он зависит? | J9: 1
D10: Как применяются штрафы в компании?
D11: Каким образом построена мотивация на сверхрезультат?
D12: Как в вашей компании построена система рейтингов?
D13: Какая существует нефинансовая мотивация менеджеров?
D14: ЧЕК-ЛИСТ
D15: Что есть в данной компании? Отметьте компоненты и системы, которые присутствуют в данном бизнесе
D16: СИСТЕМА МОТИВАЦИИ | E16: фиксированный бонус | F16: НЕФИНАНСОВАЯ МОТИВАЦИЯ | M16: FALSE | N16: FALSE
D17: разделение фиксированной и переменной части | E17: рассчет бонуса в нескольким ключевым показателям (KPI) | F17: награды и подарки | M17: FALSE | N17: FALSE
D18: индивидуальная мотивация | E18: штрафы | F18: обеды | N18: FALSE
D19: привязка бонуса к % выполнению плана | E19: мотивация на сверхрезультат | F19: корпоративы и выезды | N19: FALSE
D20: прогрессирующий % в записимости от выполнения и перевыполнения плана | E20: система рейтингов | F20: дополнительные дни отпуска | N20: FALSE
D21: % от выручки | E21: недельные рейтинги | F21: путёвки | N21: FALSE
D22: % от маржи | E22: месячные рейтинги | F22: обучение | N22: FALSE
D23: % от прибыли | E23: годовые рейтинги | F23: переходящие титулы | N23: FALSE
F24: лучших ставят в пример | N24: FALSE
I25: ХОР | J25: =COUNTIF(J2:J23, "4")+O26 -> 0
I26: плох | J26: =COUNTIF(J2:J24, "2")+Q26 -> 0 | L26: =COUNTIF(L7:L24, "ИСТИНА") -> 0 | M26: =COUNTIF(M7:M24, "ИСТИНА") -> 0 | N26: =COUNTIF(N8:N24, "ИСТИНА") -> 0 | O26: =ROUNDDOWN(SUM(L26:N26)/5,0) -> 0 | Q26: =ROUNDDOWN(COUNTIF(N25, "ИСТИНА")/5,0) -> 0 | S26: =SUM(L26:N26)+J25 -> 0
D27: Общее впечатление о блоке:

Sheet ОСНОВНЫЕ ПОКАЗАТЕЛИ
B2: ГЛАВНОЕ МЕНЮ | D2: ОСНОВНЫЕ ПОКАЗАТЕЛИ
B3: СЛЕДУЮЩИЙ БЛОК | D3: ИНТЕРВЬЮ
D4: ОТКРЫТЫЕ ВОПРОСЫ С ОЦЕНКОЙ
D5: ВОПРОС | E5: ОТВЕТ | F5: ОЦЕНКА
D6: Ведете ли Вы реальный учет показателей
D7: Как Вы собираете показатели? Какая доля собирается вручную и какая автоматически? | H7: плохо (в этом вопросе явный провал)
D8: Есть ли у Вас ежедневная статистика и по каким показателям? | H8: нейтрально (нельзя особо выделить) | J8: 1
D9: Какова корректность данных? Какой процент данных, которым Вы доверяете? | H9: хорошо (этот вопрос проработан на высоком уровне)
D10: Как у Вас организован сбор данных?
D11: Корректность методов подсчета. Насколько правильно считаются показатели? | J11: 1
D12: Насколько своевременно Вы получаете отчеты?
D13: ПОКАЗАТЕЛИ
D14: ПОКАЗАТЕЛЬ | E14: ЗНАЧЕНИЕ ПОКАЗАТЕЛЯ | F14: КОММЕНТАРИЙ
D15: Основные показатели | M15: FALSE | N15: FALSE
D16: Трафик
D17: Лиды
D18: Клиенты
D19: Выручка отдела продаж
D20: Чистая прибыль
D21: Средний чек
D22: Возвраты
D24: Стоимость привлечение клиентов
D25: CPC (стоимость привлечения клика)
D26: CPL (стоимость лида)
D27: CPO (цена за заказ)
D28: ROI (эффективность маркетинговой акции/каналов)
D29: LVT (доход с клиента за все время)
D31: Показатели эффективности
D32: Выручка на менеджера
D33: Маржа на менеджера
D34: Прибыль на менеджера
D35: Операционная эффективность звонка
D36: Операционная эффективность заявки
D37: CIR (отношение расходов к доходам отдела)
D39: Показатели найма менеджеров (в месяц)
D40: Входящих резюме
D41: Просматриваемых резюме
D42: Телефонных интервью
D43: Приглашений на собеседование
D44: Проведение полиграфа
D45: Прошедших тестовый период (%)
D47: Показатели сайта
D48: Уникальные посетители
D49: Подписки
D50: Конверсия 1(посетители->подписки)
D51: Бесплатные заявки
D52: Платные заявки
D53: Конверсия 2 (посетители->заявки)
D54: Конверсия 3 (подписки->заявки)
D55: Оплаченные заявки
D56: Конверсия 4 (посетители->заявки)
D57: Конверсия 5 (заявки->оплаченные заявки)
D59: Показатели качества вызовов
D60: Входящие звонки (Inbounds), шт.
D61: Предложенные вызовы (Offered Calls), шт.
D62: Уровень перевода (Transfer Rate), %
D63: Потерянные вызовы (Lost Calls), шт.
D64: Уровень пропущенных вызовов (Lost Rate), %
D65: Исходящие звонки (Outband Calls), шт.
D66: Пропущенные вызовы (Abandoned Calls), шт.
D67: Уровень дозвона (Connests Rate), шт.
D69: Общие показатели качества работы
D70: Индекс потребительской лояльности (NPS), %
D71: Среднее время ответа (ASA), сек
D72: Уровень контакта, %
D73: Уровень конверсии, %
D75: Показатели качества работы с CRM-системой
D76: Количество обработанных задач
D77: Количество закрытых задач без действий
D78: Количество пропущенных задач
D79: Количество новых задач
D80: Количество задач по обращениям
D81: Количество созданных заявок
D82: Корректность работы в CRM-системе
I83: ХОР | J83: =COUNTIF(J1:J82, "4")+O84 -> 0
I84: плох | J84: =COUNTIF(J1:J82, "2")+Q84 -> 0 | L84: =COUNTIF(L6:L82, "ИСТИНА") -> 0 | M84: =COUNTIF(M6:M82, "ИСТИНА") -> 0 | N84: =COUNTIF(N7:N82, "ИСТИНА") -> 0 | O84: =ROUNDDOWN(SUM(L84:N84)/5,0) -> 0 | Q84: =ROUNDDOWN(COUNTIF(N83, "ИСТИНА")/5,0) -> 0 | S84: =SUM(L84:N84)+J83 -> 0
D85: Общее впечатление о блоке:

Sheet ВОРОНКА ПРОДАЖ
B2: ГЛАВНОЕ МЕНЮ | D2: Воронка Продаж. План июль - сентябрь 2014г.
B3: СЛЕДУЮЩИЙ БЛОК | D3: Заполнить ключевые показатели маркетинга и продаж компании (белые ячейки)
E5: ПОКАЗАТЕЛЬ | G5: 2014-07-01 | H5: 2014-08-01 | N5: Обращения
J6: Конверсия 1 | N6: =G7 -> 1166000
E7: Обращения | G7: 1166000 | H7: 1282600 | J7: =G9 -> 0.12 | P7: Лиды
E8: Лиды | G8: 139920 | H8: 153912 | L8: Конверсия 2 | P8: =G8 -> 139920
E9: Конверсия 1 (обращения -> лиды) | G9: =G8/G7 -> 0.12 | H9: =H8/H7 -> 0.12 | L9: =G11 -> 0.35 | R9: Встречи
E10: Встречи | G10: 48972 | H10: 53869.2 | N10: Конверсия 3 | R10: =G10 -> 48972
E11: Конверсия 2 (лиды -> встречи) | G11: =G10/G8 -> 0.35 | H11: 0.35 | N11: =G13 -> 0.55 | T11: Продажи
E12: Продажи | G12: 26934.6 | H12: 29628.06 | T12: =G12 -> 26934.6
E13: Конверсия 3 (встречи -> продажи) | G13: =G12/G10 -> 0.55 | H13: =H12/H10 -> 0.55
E14: Средний чек | G14: =G15/G12 -> 3.050600343 | H14: =H15/H12 -> 3.050600343 | S14: Средний чек
E15: Выручка | G15: 82166.7 | H15: 90383.37 | S15: =G14 -> 3.050600343
E17: Маржа | G17: 24650.01 | H17: 27115.011 | S17: Выручка
E18: Чистая прибыль | G18: 16433.34 | H18: 18076.674 | S18: =T12*S15 -> 82166.7
E19: Остаток на начало отчетного периода | G19: 4142 | H19: 4930.002
E20: Остаток на конец отчетного периода | G20: 4930.002 | H20: 5423.0022
E21: ФИНАНСОВЫЕ ПОКАЗАТЕЛИ УКАЗАНЫ В ТЫС. РУБ.

Sheet АНАЛИЗ ПРОДУКТОВ
B2: ГЛАВНОЕ МЕНЮ | D2: АНАЛИЗ ПРОДУКТОВ ПО ВЫРУЧКЕ (ТОП-10)
B3: СЛЕДУЮЩИЙ БЛОК | D3: Выявить ТОП-10 продуктов (либо групп продуктов), приносящие наибольшую прибыль. В случае, если продуктов более 10, необходимо объединить продукты по категориям.
D5: ПРОДУКТ | E5: ВЫРУЧКА (тыс. руб.)
D6: ПРОДУКТ 10 | E6: 22
D7: ПРОДУКТ 9 | E7: 31
D8: ПРОДУКТ 8 | E8: 34
D9: ПРОДУКТ 7 | E9: 84
D10: ПРОДУКТ 6 | E10: 243
D11: ПРОДУКТ 5 | E11: 323
D12: ПРОДУКТ 4 | E12: 834
D13: ПРОДУКТ 3 | E13: 1122
D14: ПРОДУКТ 2 | E14: 1366
D15: ПРОДУКТ 1 | E15: 2166

Sheet АНАЛИЗ КЛИЕНТОВ
B2: ГЛАВНОЕ МЕНЮ | D2: АНАЛИЗ КЛИЕНТОВ ПО ВЫРУЧКЕ (ABC АНАЛИЗ, ТОП-10)
B3: СЛЕДУЮЩИЙ БЛОК | D3: Какие клиенты приносят основную прибыль? Как разделить их по группам приоритета? Алгоритм: 1) выписать всех клиентов, купивших в прошедшем месяце, 2) отфильтровать по возрастанию, 3) кумулятивная сумма двух первых долей не должна превосходить 10% и 40% соответственно (т.е. считаем клиентов, приносящих 10% и 30% прибыли); 4) указать количество клиентов, дающих около 10% и 30% соотв.
D6: КЛИЕНТ | E6: ВЫРУЧКА (тыс. руб.) | F6: доля клиента в общей сумме выручки | G6: кумулятивная сумма | H6: количество клиентов | I6: доля выручки
D7: КЛИЕНТ 1 | E7: 3 | F7: =E7/$E$38 -> 0.004823151125 | G7: =F7 -> 0.004823151125
D8: КЛИЕНТ 9 | E8: 9 | F8: 0.01446945338 | G8: =G7+F8 -> 0.0192926045
D9: КЛИЕНТ 10 | E9: 10 | F9: 0.01607717042 | G9: 0.03536977492
D10: КЛИЕНТ 11 | E10: 11 | F10: 0.01768488746 | G10: 0.05305466238
D11: КЛИЕНТ 4 | E11: 12 | F11: 0.0192926045 | G11: 0.07234726688
D12: КЛИЕНТ 12 | E12: 12 | F12: 0.0192926045 | G12: 0.09163987138 | H12: 6 | I12: 0.1
D13: КЛИЕНТ 8 | E13: 13 | F13: 0.02090032154 | G13: 0.1125401929
D14: КЛИЕНТ 13 | E14: 13 | F14: 0.02090032154 | G14: 0.1334405145
D15: КЛИЕНТ 14 | E15: 14 | F15: 0.02250803859 | G15: 0.1559485531
D16: КЛИЕНТ 15 | E16: 15 | F16: 0.02411575563 | G16: 0.1800643087
D17: КЛИЕНТ 16 | E17: 16 | F17: 0.02572347267 | G17: 0.2057877814
D18: КЛИЕНТ 17 | E18: 17 | F18: 0.02733118971 | G18: 0.2331189711
D19: КЛИЕНТ 18 | E19: 18 | F19: 0.02893890675 | G19: 0.2620578778
D20: КЛИЕНТ 19 | E20: 19 | F20: 0.03054662379 | G20: 0.2926045016
D21: КЛИЕНТ 20 | E21: 20 | F21: 0.03215434084 | G21: 0.3247588424
D22: КЛИЕНТ 21 | E22: 21 | F22: 0.03376205788 | G22: 0.3585209003
D23: КЛИЕНТ 7 | E23: 22 | F23: 0.03536977492 | G23: 0.3938906752 | H23: 11 | I23: 0.3
D24: КЛИЕНТ 22 | E24: 22 | F24: 0.03536977492 | G24: 0.4292604502
D25: КЛИЕНТ 6 | E25: 23 | F25: 0.03697749196 | G25: 0.4662379421
D26: КЛИЕНТ 23 | E26: 23 | F26: 0.03697749196 | G26: 0.5032154341
D27: КЛИЕНТ 24 | E27: 24 | F27: 0.038585209 | G27: 0.5418006431
D28: КЛИЕНТ 25 | E28: 25 | F28: 0.04019292605 | G28: 0.5819935691
D29: КЛИЕНТ 26 | E29: 26 | F29: 0.04180064309 | G29: 0.6237942122
D30: КЛИЕНТ 27 | E30: 27 | F30: 0.04340836013 | G30: 0.6672025723
D31: КЛИЕНТ 28 | E31: 28 | F31: 0.04501607717 | G31: 0.7122186495
D32: КЛИЕНТ 29 | E32: 29 | F32: 0.04662379421 | G32: 0.7588424437
D33: КЛИЕНТ 30 | E33: 30 | F33: 0.04823151125 | G33: 0.807073955
D34: КЛИЕНТ 3 | E34: 33 | F34: 0.05305466238 | G34: 0.8601286174
D35: КЛИЕНТ 5 | E35: 34 | F35: 0.05466237942 | G35: 0.9147909968
D36: КЛИЕНТ 2 | E36: 53 | F36: 0.08520900322 | G36: 1 | H36: 13 | I36: 0.6
D38: СУММА | E38: =SUM(E7:E36) -> 622

Sheet 3 ДНЯ МЕНЕДЖЕРОМ
B2: ГЛАВНОЕ МЕНЮ | D2: ТРИ ДНЯ МЕНЕДЖЕРОМ
B3: СЛЕДУЮЩИЙ БЛОК | D3: Отработать 1 день менеджером по продажам а) у себя в компании, б) в двух компаниях сокурсников
D4: СПРАВОЧНАЯ ИНФОРМАЦИЯ
D5: ВОПРОС | E5: ОТВЕТ
D6: Даты работы менеджером:
D7: Сколько часов отработал менеджером?
D8: Сколько клиентов обзвонили?
D9: Сколько из них новых клиентов?
D10: Сколько из них старых клиентов?
D11: Ваши результаты (продаж, назначенных встреч и т. п.)?
D12: ОТКРЫТЫЕ ВОПРОСЫ
D13: ВОПРОС | E13: ОТВЕТ
D14: Выводы о клиентах | E14: Какое впечатление от клиентов? Насколько они разбираются в Вашем товаре или услугах? Какова их специфика?
D15: Выводы о менеджерах | E15: Как часто менеджеры делают перерыв в работе и по каким в основном причинам? Стоит ли рабочий гул в отделе? Насколько важна экспертность и понимание продукта? Может ли непрофессионал продавать продукт?
D16: Выводы о рабочем графике | E16: Во время ли они приходят на работу и во сколько уходят? Какое в целом настроение в коллективе? Насколько интенсивно работают менеджеры?
D17: Выводы о продуктах | E17: Насколько они отвечают пожеланиям и требованиям клиентов?
D18: Выводы о скриптах | E18: Если есть скрипты и стандарты общения с клиентами, насколько они оказались эффективны?
D19: Выводы о CRM-системе | E19: Насколько удобен интерфейс и проработан алгоритм работы? Какого функционала не хватает в первую очередь?
D20: Выводы о непродающих задачах менеджеров | E20: Подготовка коммерческого предложения, подготовка отчетов, ответы на сервисные звонки
D21: Выводы об организации рабочего места | E21: Насколько часто нужны готовые маркетинговые материалы или коммерческие предложения?
D22: Выводы о ценах и ценообразовании | E22: Возникают ли у клиентов вопрос по ценообразованию Ваших продуктов и услуг? Как часто цена становится препятствием при продаже?
D23: Выводы о сервисе | E23: Насколько клиенты довольны обслуживанием? Где основные проблемы и узкие места?
D24: Выводы о нормативах работы | E24: Укладываются ли менеджеры в существующие нормативы? Не слишком ли нормативы сложные/простые для выполнения?
D27: Общее впечатление о блоке:

Sheet <<ИТОГИ>>
B2: ГЛАВНОЕ МЕНЮ | C2: ИТОГИ АУДИТА СИСТЕМЫ ПРОДАЖ И МАРКЕТИНГА
H6: ПОКАЗАТЕЛЬ | J6: 2014-07-01
H8: Обращения | J8: 1166000
H9: Лиды | J9: 139920
H10: Конверсия 1 (обращения -> лиды) | J10: =J9/J8 -> 0.12
H11: Встречи | J11: 48972
H12: Конверсия 2 (лиды -> встречи) | J12: =J11/J9 -> 0.35
H13: Продажи | J13: 26934.6
H14: Конверсия 3 (встречи -> продажи) | J14: =J13/J11 -> 0.55
H15: Средний чек | J15: =J16/J13 -> 3.050600343
H16: Выручка | J16: 82166.7
B18: =САЙТ!J23+'КАНАЛЫ ПРИВЛЕЧЕНИЯ'!J30+'МАРКЕТИНГОВЫЕ МАТЕРИАЛЫ'!J27+'РАБОТА С КЛИЕНТОМ'!J35+'ВИЗИТ В ОФИС'!J25+'ПОСЕЩЕНИЕ ТОРГОВОГО ЗАЛА'!J26+'ЗАКАЗ И ОПЛАТА'!J22+ПОСТПРОДАЖИ!J21+'ИНФРАСТРУКТУРА ОФИСА'!J23+ТЕЛЕФОНИЯ!J20+'E-MAIL, SMS'!J22+CRM!J44+РЕКРУТИНГ!J28+'ОБУЧЕНИЕ СОТРУДНИКОВ'!J22+МОТИВАЦИЯ!J25+'ОСНОВНЫЕ ПОКАЗАТЕЛИ'!J83 -> 0 | E18: =САЙТ!J24+'КАНАЛЫ ПРИВЛЕЧЕНИЯ'!J31+'МАРКЕТИНГОВЫЕ МАТЕРИАЛЫ'!J28+'РАБОТА С КЛИЕНТОМ'!J36+'ВИЗИТ В ОФИС'!J26+'ПОСЕЩЕНИЕ ТОРГОВОГО ЗАЛА'!J27+'ЗАКАЗ И ОПЛАТА'!J23+ПОСТПРОДАЖИ!J22+'ИНФРАСТРУКТУРА ОФИСА'!J24+ТЕЛЕФОНИЯ!J21+'E-MAIL, SMS'!J23+CRM!J45+РЕКРУТИНГ!J29+'ОБУЧЕНИЕ СОТРУДНИКОВ'!J23+МОТИВАЦИЯ!J26+'ОСНОВНЫЕ ПОКАЗАТЕЛИ'!J84 -> 0 | H18: Маржа | J18: 24650.01
H19: Чистая прибыль | J19: 16433.34
H20: Остаток на начало отчетного периода | J20: 4142
H21: Остаток на конец отчетного периода | J21: 4930.002

Sheet СПРАВОЧНАЯ ИНФОРМАЦИЯ
B2: ГЛАВНОЕ МЕНЮ | D2: СПРАВОЧНАЯ ИНФОРМАЦИЯ О ДАННОМ АУДИТЕ
B3: ПРЕДЫДУЩИЙ БЛОК
D4: Регион | G4: нет
G5: да, частично проработан
D6: Город | G6: да, полностью проработан
D8: Даты проведения аудита
D10: ФИО аудитора
D12: Название аудируемой компании
D13: Какие блоки аудита были проработаны? (выберите ответ из списка)
D14: 1. Первое впечатление
D16: 2. Блиц
D18: 3. Маркетинг
D20: 4. Алгоритм продаж
D22: 5. Инфраструктура
D24: 6. Персонал
D26: 7. Показатели
D28: 8. Режим HARD
D30: Комментарии
D34: Общий уровень участника | E34: Эксперт, новичок, простая русская женщина

Sheet зачита авторских прав
B2: ГЛАВНОЕ МЕНЮ
